[Event "Romanian Superliga 2024"]
[Site "Mamaia"]
[Date "2024.10.01"]
[Round "4.15"]
[White "Parligras, Mircea-Emilian"]
[Black "Vavric, Pavel"]
[Result "1-0"]
[ECO "E90"]
[WhiteElo "2537"]
[BlackElo "2285"]
[Annotator "TA"]
[PlyCount "115"]
[EventDate "2024.09.26"]
[EventType "team-tourn"]
[EventCountry "ROU"]
[SourceTitle "playchess.com"]
[Source "ChessBase"]
[SourceQuality "1"]
[TimeControl "40/5400+30:1800+30"]

{[%evp 48,115,44,35,43,43,41,41,45,42,159,164,160,164,164,164,338,355,334,335,671,103,105,100,95,77,114,112,157,82,88,0,0,0,0,0,0,13,169,192,181,186,181,131,189,165,172,121,165,141,433,194,225,165,291,252,379,379,371,364,312,140,129,114,120,120,112,0,29975,29976]} 1. d4 {[%emt 0:00:05]} Nf6 {[%emt 0:00:05]} 2. c4 {[%emt 0:00:04]} g6 {[%emt 0:00:05]} 3. Nc3 {[%emt 0:00:13]} Bg7 {[%emt 0:00:06]} 4. e4 {[%emt 0:00:05]} d6 {[%emt 0:00:05]} 5. h3 {[%emt 0:00:05]} O-O {[%emt 0:00:08]} 6. Be3 {[%emt 0:00:03]} Nbd7 {[%emt 0:00:11]} 7. Nf3 {[%emt 0:02:21] The main line 7.Nf3 scores better than 7.g4.} e5 {[%emt 0:02:06]} 8. Bd3 {[%emt 0:00:18] E90: King's Indian: Classical: Early deviations and 6 h3.} exd4 {[%emt 0:05:36]} 9. Nxd4 {[%emt 0:00:10]} Nc5 {[%emt 0:00:42]} 10. O-O {[%emt 0:00:17]} Re8 {[%emt 0:00:38]} 11. f3 {[%emt 0:00:46]} b6 $146 {[%emt 0:07:38]} ({Predecessor:} 11... Nxd3 12. Qxd3 c6 13. Rad1 Qc7 14. Nde2 Be6 15. b3 Rad8 16. Nf4 Bc8 17. Rd2 Nd7 {½-½ Loncar,R (2397)-Movsziszian,K (2513) Bled Planinc Memorial 1st blitz 2018 (4)}) 12. Bc2 {[%emt 0:05:25]} a5 {[%emt 0:20:41]} 13. Qd2 {[%emt 0:00:48]} Bb7 {[%emt 0:01:07]} 14. Rad1 {[%emt 0:00:48]} Nfd7 {[%emt 0:07:43]} 15. Rfe1 {[%emt 0:01:36]} Ne5 {[%emt 0:05:28]} 16. b3 {[%emt 0:01:53]} Nc6 {[%emt 0:01:33]} 17. Ndb5 {[%emt 0:03:04]} Na7 {[%emt 0:05:44]} 18. Nxa7 {[%emt 0:05:15]} Rxa7 {[%emt 0:00:08]} 19. a3 {[%emt 0:00:13]} Ra8 {[%emt 0:03:17]} 20. Nb5 {[%emt 0:17:19]} Ne6 {[%emt 0:07:59]} 21. Bd3 {[%emt 0:07:27]} Rc8 {[%emt 0:10:40]} 22. Bf1 {[%emt 0:01:00]} Be5 {[%emt 0:00:15]} 23. Nc3 {[%emt 0:11:04]} Bg3 {[%emt 0:06:35]} 24. Bf2 {[%emt 0:00:32]} Bxf2+ {[%emt 0:02:56]} 25. Qxf2 {[%emt 0:00:13]} Qg5 {[%emt 0:02:08]} 26. Nd5 {[%emt 0:02:14]} Nf4 {[%emt 0:05:21]} 27. Kh2 {[%emt 0:06:35]} Nxd5 {[%emt 0:00:39]} (27... Bxd5 28. cxd5 Nh5 29. g3 $16) 28. cxd5 {[%emt 0:00:15]} f5 {[%emt 0:00:12]} (28... Qf6 $14) 29. Bb5 $16 {[%emt 0:04:08]} Re7 {[%emt 0:00:41]} 30. f4 $1 {[%emt 0:02:13]} Qf6 {[%emt 0:00:34]} 31. e5 $1 {[%emt 0:00:42]} (31. exf5 $6 Rxe1 32. Qxe1 (32. Rxe1 Qxf5 33. Re7 Qf6 $11) 32... Qxf5 $14) 31... Qg7 $2 {[%emt 0:02:11]} (31... dxe5 $2 32. fxe5 (32. Qb2 Qg7 $16) 32... Qf8 (32... Rxe5 $2 33. Qd4 $18) 33. d6 (33. Bc4 Kg7 $18) 33... cxd6 34. exd6 Rxe1 35. Qxe1 $18) (31... Qf8 {was worth a try.} 32. a4 dxe5) 32. exd6 $18 {[%emt 0:05:19]} cxd6 {[%emt 0:00:09]} 33. Re6 {[%emt 0:10:15]} (33. Qxb6 Rxe1 34. Rxe1 Qc7 35. Re8+ Kf7 $18) 33... Rc5 $2 {[%emt 0:01:52]} (33... g5 34. Rxd6 (34. Qxb6 Rxe6 35. dxe6 gxf4 $11) 34... gxf4 35. Rxb6 (35. Qxf4 Kh8 $18) 35... Re3) 34. Qe2 $2 {[%emt 0:00:19]} (34. Rxd6 $18 {has better winning chances. Black must now prevent Rd8+.} Bxd5 (34... Rxb5 $2 35. Rd8+ $18) 35. R1xd5 (35. R6xd5 Rxd5 36. Rxd5 Qf6 $18) 35... Rxd5 36. Bc4 (36. Rxd5 Qf6 $18)) 34... Rxe6 $16 {[%emt 0:00:50]} 35. dxe6 {[%emt 0:00:27]} Qe7 {[%emt 0:00:10]} 36. b4 {[%emt 0:05:16]} axb4 {[%emt 0:00:10]} 37. axb4 {[%emt 0:00:04]} Rc7 {[%emt 0:00:07]} 38. Rd2 {[%emt 0:03:06]} (38. Bc4 $142 $1 {[%cal Od1d6] And now Rxd6! would win.} Rc8 39. Bb3) 38... Be4 $16 {[%emt 0:00:30]} 39. Bd7 {[%emt 0:00:23]} (39. Qe3 $16) 39... d5 $11 {[%emt 0:00:38]} 40. Qf2 {[%emt 0:00:00]} Qd6 {[%emt 0:00:00]} (40... Qxb4 41. Rb2 Qd6 (41... Qc5 $2 42. Qh4 $18) 42. Rxb6 $14 (42. Qxb6 Qxf4+ 43. g3 Qf3 44. Qg1 f4 45. g4 Rc1 46. Rb8+ Kg7 47. Qd4+ Kh6 48. g5+ Kh5)) 41. Qh4 {[%emt 0:05:47]} (41. Ra2 $5 d4 $8 42. Qh4 $11) 41... Kg7 {[%emt 0:05:11]} 42. Rf2 {[%emt 0:01:25]} Rxd7 $2 {[%emt 0:04:04]} (42... Qxb4 43. Qd8 (43. e7 Rc8 $18) 43... Rxd7 44. Qxd7+ Kh6 45. e7 Bd3 46. e8=N (46. e8=R Bb5 47. Qe7 Qxe7 48. Rxe7 Bc4 49. g4 g5 50. fxg5+ Kxg5 51. Rxf5+ Kg6) 46... Qf8 47. Qd8 (47. Qxd5 Qxe8 48. Qxd3 Qb8 $18) (47. Qxd5 Qxe8 48. Qxd3 Qe1 $18)) (42... Rc2 $1 $11 {and Black is okay.}) 43. exd7 $18 {[%emt 0:00:05]} Qxd7 {[%emt 0:00:03]} 44. Rd2 {[%emt 0:00:41]} Qc7 {[%emt 0:01:17]} 45. Qg3 {[%emt 0:04:48]} Kf7 {[%emt 0:07:06]} (45... Kf8 $16 46. b5 Ke8) 46. h4 $1 $18 {[%emt 0:07:36]} h6 {[%emt 0:07:41]} 47. Kh3 {[%emt 0:03:10]} (47. Rd1 $18) 47... Qc4 {[%emt 0:03:11]} 48. Qa3 {[%emt 0:01:21]} g5 $2 {[%emt 0:03:59][%mdl 8192]} (48... Qc7 $16) 49. hxg5 {[%emt 0:03:39]} ({Less strong is} 49. fxg5 hxg5 50. hxg5 Qc7 $18) (49. Qa7+ $142 Ke6 50. Qxb6+ (50. hxg5 Qc3+ 51. g3 Qxd2 $11) 50... Kf7 51. Qa7+ (51. Qxh6 $2 Qc3+ 52. Kh2 Qxd2 $19) 51... Kf8 52. Ra2 (52. fxg5 Qc3+ 53. g3 Qxd2 $11) 52... Bxg2+ 53. Rxg2 g4+ 54. Kg3 Qd3+ 55. Kh2) 49... hxg5 {[%emt 0:00:05]} 50. fxg5 {[%emt 0:00:08]} Kg6 {[%emt 0:00:16]} (50... Qc7 $142 51. Ra2 Kg6) 51. Qb2 {[%emt 0:05:29]} Kh5 {[%emt 0:03:44] [#]} (51... Qc6 $142 52. Kh4 Qd6) 52. Qh8+ $1 $18 {[%emt 0:05:47]} Kxg5 {[%emt 0:00:03]} 53. Qg7+ {[%emt 0:00:06]} Kh5 {[%emt 0:00:02] [#]} 54. Rf2 {[%emt 0:03:31]} (54. g4+ $1 $18 fxg4+ 55. Qxg4+ Kh6 56. Qe6+ Kg5 57. Qe5+ (57. Qxb6 $2 {is a self mate.} Qf1+ 58. Kh2 Qh1+ 59. Kg3 Qh4#) 57... Bf5+ 58. Kh2 Qf4+ 59. Qxf4+ Kxf4 60. Rxd5) 54... Qd3+ {[%emt 0:00:51]} 55. Kh2 {[%emt 0:00:06]} Qe3 {[%emt 0:00:31]} 56. Qf7+ {[%emt 0:00:40]} Kg5 {[%emt 0:00:13]} 57. Qe7+ {[%emt 0:00:09]} ({Better is} 57. Rf1 $16) 57... Kh5 $2 {[%emt 0:00:30][%mdl 8192]} (57... Kg4 $11) 58. Rf3 {[%emt 0:00:13]} 1-0

[Event "Romanian Superliga 2024"]
[Site "Mamaia"]
[Date "2024.10.01"]
[Round "4.16"]
[White "Sachilaru, Alexandru"]
[Black "Gavrilescu, David"]
[Result "1-0"]
[ECO "B45"]
[WhiteElo "2265"]
[BlackElo "2547"]
[Annotator "TA"]
[PlyCount "73"]
[EventDate "2024.09.26"]
[EventType "team-tourn"]
[EventCountry "ROU"]
[SourceTitle "playchess.com"]
[Source "ChessBase"]
[SourceQuality "1"]
[TimeControl "40/5400+30:1800+30"]

{[%evp 11,73,16,31,27,29,16,14,25,26,29,31,27,27,29,29,30,30,33,35,23,37,33,33,40,43,35,72,33,45,24,35,43,48,18,50,49,40,34,54,17,64,10,58,34,106,108,527,541,497,583,583,582,589,569,620,590,551,531,2302,1860,5157,4899,29994,29995]} 1. e4 {[%emt 0:00:05]} c5 {[%emt 0:00:41]} 2. Nf3 {[%emt 0:00:09][%cal Bg1f3,Bf3d4,Bd4b5,Bb5d6][%mdl 32]} e6 {[%emt 0:00:38]} 3. d4 {[%emt 0:00:37]} cxd4 {[%emt 0:00:27]} 4. Nxd4 {[%emt 0:00:05]} Nf6 {[%emt 0:00:36]} 5. Nc3 {[%emt 0:00:25]} Nc6 {[%emt 0:00:23]} 6. Ndb5 {[%emt 0:00:44]} Bc5 {[%emt 0:00:39]} 7. Nd6+ {[%emt 0:01:01]} Ke7 {[%emt 0:01:11]} 8. Bf4 {[%emt 0:00:38] Black should prevent Bc4.} e5 $1 {[%emt 0:00:36]} 9. Nf5+ {[%emt 0:00:11] The position is equal.} Kf8 {[%emt 0:00:07]} 10. Bg5 {[%emt 0:00:21]} d6 {[%emt 0:00:10]} 11. Ne3 {[%emt 0:00:43]} Be6 {[%emt 0:07:43]} 12. Qd2 {[%emt 0:02:11]} h6 {[%emt 0:05:36]} 13. Bxf6 {[%emt 0:00:36]} Qxf6 {[%emt 0:00:09]} 14. Ncd5 {[%emt 0:02:08]} Qd8 {[%emt 0:02:11]} 15. c3 {[%emt 0:02:03]} a6 {[%emt 0:09:07]} 16. Be2 {[%emt 0:04:27]} Rc8 {[%emt 0:06:20]} 17. O-O {[%emt 0:02:24][%cal Bh1f1,Bf1f4,Bf4f5][%mdl 32]} h5 {[%emt 0:04:28]} 18. Kh1 {[%emt 0:11:18]} Rh6 {[%emt 0:05:44]} 19. f4 {[%emt 0:07:11]} Bxe3 {[%emt 0:15:39]} 20. Nxe3 {[%emt 0:07:43]} exf4 {[%emt 0:00:11]} 21. Rxf4 {[%emt 0:00:35]} Ne5 {[%emt 0:01:40]} 22. Rd1 Rc6 {[%emt 0:00:30]} 23. Nf5 Bxf5 {[%emt 0:00:30]} 24. Rxf5 Qh4 {[%emt 0:00:30]} 25. Qe3 Kg8 {[%emt 0:00:30]} (25... Ng4 $11 {was preferrable.} 26. Qf4 Rf6 27. Bxg4 Qxg4 28. Qxg4 hxg4) 26. g3 {White is more active.} (26. h3 $14) 26... Qh3 {[%emt 0:00:30]} (26... Ng4 $11 27. Bxg4 Qxg4) 27. Qf4 h4 {[%emt 0:00:30]} (27... Rb6 $14 28. Rd2 f6) 28. g4 $1 $16 {And now Rxe5 would win.} Rb6 $2 {[%emt 0:00:30][%mdl 8192] Black cannot hold the game after this.} (28... Rf6 $16) 29. Rxe5 $18 dxe5 {[%emt 0:00:30]} 30. Rd8+ Kh7 {[%emt 0:00:30] [#]} 31. Qf5+ Rhg6 {[%emt 0:00:30] [#] Strongly threatening ...Rbf6.} 32. Rd3 $1 ({Stronger than} 32. Qxf7 Rxb2 33. Qg8+ Kh6 34. Qh8+ Kg5 $11) 32... Qxd3 {[%emt 0:00:30]} 33. Bxd3 Rxb2 {[%emt 0:00:30]} 34. g5 {[%cal Bg4g5,Bg5g6][%mdl 32] White threatens Bc4 and mate.} Kh8 {[%emt 0:00:30]} 35. Bc4 Rd6 {[%emt 0:00:30]} 36. Bd5 (36. Qxe5 $2 {leads to mate.} Rd1+) 36... f6 {[%emt 0:00:30]} 37. g6 {Weighted Error Value: White=0.10 (very precise) /Black=0.48.  Loses game:     	---       	Black=1      Mistake:       	White=1     	Black=3      Inaccurate:     	White=3     	Black=4      OK:         	White=9     	Black=8      Best:        	White=3     	Black=4      Strong:       	White=2     	Black=1} 1-0

[Event "Romanian Superliga 2024"]
[Site "Mamaia"]
[Date "2024.10.01"]
[Round "4.17"]
[White "Costachi, Mihnea"]
[Black "Patrascu, Catalin-Lucian"]
[Result "1/2-1/2"]
[ECO "E11"]
[WhiteElo "2472"]
[BlackElo "2298"]
[Annotator "TA"]
[PlyCount "41"]
[EventDate "2024.09.26"]
[EventType "team-tourn"]
[EventCountry "ROU"]
[SourceTitle "playchess.com"]
[Source "ChessBase"]
[SourceQuality "1"]
[TimeControl "40/5400+30:1800+30"]

{[%evp 18,41,14,12,16,0,14,-29,-28,-20,-30,-42,-39,-49,-62,-125,-132,-125,-120,-98,0,0,0,-111,0,0]} 1. d4 {[%emt 0:00:06]} Nf6 {[%emt 0:00:05]} 2. Nf3 {[%emt 0:01:29]} e6 {[%emt 0:00:30]} 3. c4 {[%emt 0:00:22]} d5 {[%emt 0:00:30]} 4. g3 {[%emt 0:00:05]} Bb4+ {[%emt 0:00:42]} 5. Bd2 {[%emt 0:00:51]} Be7 {[%emt 0:00:05]} 6. Bg2 {[%emt 0:02:43]} O-O {[%emt 0:00:39]} 7. Qc2 {[%emt 0:04:12]} c6 {[%emt 0:01:47]} 8. O-O {[%emt 0:02:53]} b6 {[%emt 0:00:23]} 9. Rd1 {[%emt 0:22:40]} Nbd7 {[%emt 0:05:49]} 10. b3 {[%emt 0:01:28]} Ne4 {[%emt 0:19:27]} 11. Bf4 {[%emt 0:01:01]} g5 {[%emt 0:11:05]} 12. cxd5 {[%emt 0:02:24]} cxd5 {[%emt 0:05:58] Black has an edge.} 13. Bc7 {[%emt 0:17:10]} Qe8 {[%emt 0:00:14]} 14. Nfd2 {[%emt 0:12:33]} Bb7 {[%emt 0:29:49] ...Rc8 is the strong threat.} 15. Nxe4 {[%emt 0:06:26]} dxe4 {[%emt 0:00:42]} 16. Bxe4 {[%emt 0:01:12]} (16. Nc3 $1 $15 Rc8 (16... f5 17. d5 $11) 17. Nb5 (17. Nxe4 Bd5 $17)) 16... Bxe4 $17 {[%emt 0:01:13]} 17. Qxe4 {[%emt 0:00:02] [#]} Nf6 $1 {[%emt 0:03:07]} 18. Qe5 {[%emt 0:02:23]} Ng4 {[%emt 0:00:45][%mdl 1024] Black has strong compensation.} 19. Qe4 {[%emt 0:00:20]} Nf6 {[%emt 0:00:13]} 20. Qe5 {[%emt 0:00:31] [#]} Ng4 {[%emt 0:00:39]} ({Better is} 20... h6 $1 $17 {And now ...Rc8 would win.} 21. g4 Rc8 (21... Nxg4 22. Qg3 $15)) 21. Qe4 {[%emt 0:00:13] Weighted Error Value: White=0.15 (very precise) /Black=0.26 (precise) .  Mistake:       	White=1     	Black=1      Inaccurate:     	White=1     	---        OK:         	White=4     	Black=5      Best:        	White=2     	---} 1/2-1/2

[Event "Romanian Superliga 2024"]
[Site "Mamaia"]
[Date "2024.10.01"]
[Round "4.18"]
[White "Andronescu, Madalin"]
[Black "Tudor, Henry Edward"]
[Result "0-1"]
[ECO "B40"]
[WhiteElo "1982"]
[BlackElo "2347"]
[Annotator "RC"]
[PlyCount "64"]
[EventDate "2024.09.26"]
[EventType "team-tourn"]
[EventCountry "ROU"]
[SourceTitle "playchess.com"]
[Source "ChessBase"]
[SourceQuality "1"]
[TimeControl "40/5400+30:1800+30"]

1. e4 {[%emt 0:00:04]} c5 {[%emt 0:00:06]} 2. Nf3 {[%emt 0:00:11]} e6 {[%emt 0:00:12]} 3. d4 {[%emt 0:00:07]} cxd4 {[%emt 0:00:03]} 4. Nxd4 {[%emt 0:00:06]} Nf6 {[%emt 0:00:03]} 5. Nc3 {[%emt 0:00:06]} Nc6 {[%emt 0:00:02]} 6. Nxc6 {[%emt 0:01:15]} bxc6 {[%emt 0:00:07]} 7. Bd3 {[%emt 0:00:05]} d5 {[%emt 0:02:45]} 8. O-O {[%emt 0:00:33]} Be7 {[%emt 0:00:51]} 9. e5 {[%emt 0:09:09]} Nd7 {[%emt 0:00:10]} 10. f4 {[%emt 0:00:13]} O-O {[%emt 0:02:40]} 11. Na4 {[%emt 0:07:37]} f6 {[%emt 0:09:58]} 12. exf6 {[%emt 0:07:23]} Nxf6 {[%emt 0:03:55]} 13. b3 {[%emt 0:06:37]} c5 {[%emt 0:15:31]} 14. Ba3 {[%emt 0:04:38]} Qc7 {[%emt 0:02:17]} 15. Qe1 {[%emt 0:09:35]} Bd7 {[%emt 0:07:36]} 16. Rd1 {[%emt 0:15:26]} Bd6 {[%emt 0:07:25]} 17. Kh1 {[%emt 0:07:37]} Rae8 {[%emt 0:05:51]} 18. Qh4 {[%emt 0:08:43]} Be7 {[%emt 0:20:11]} 19. Bb2 {[%emt 0:06:47]} d4 {[%emt 0:03:17]} 20. c3 {[%emt 0:01:07]} Bxa4 {[%emt 0:01:54]} 21. bxa4 {[%emt 0:00:10]} c4 {[%emt 0:00:02]} 22. Be2 {[%emt 0:07:56]} d3 {[%emt 0:01:14]} 23. Bg4 {[%emt 0:00:06]} Qc6 {[%emt 0:01:46]} 24. Rde1 {[%emt 0:01:37]} Bc5 {[%emt 0:02:41]} 25. f5 {[%emt 0:00:40]} e5 {[%emt 0:00:33]} 26. Bc1 {[%emt 0:00:24]} e4 {[%emt 0:03:01]} 27. Bg5 {[%emt 0:01:48]} e3 {[%emt 0:00:40]} 28. Bf3 {[%emt 0:00:07]} Qxa4 {[%emt 0:00:02]} 29. Bxf6 {[%emt 0:00:36]} Rxf6 {[%emt 0:00:02]} 30. Bd5+ {[%emt 0:00:07]} Kh8 {[%emt 0:00:07]} 31. Qxc4 {[%emt 0:03:07]} Qxc4 {[%emt 0:00:20]} 32. Bxc4 {[%emt 0:00:04]} e2 {[%emt 0:01:53]} 0-1

[Event "Romanian Superliga 2024"]
[Site "Mamaia"]
[Date "2024.10.01"]
[Round "4.19"]
[White "Pranav Vijay"]
[Black "Kantor, Gergely"]
[Result "0-1"]
[ECO "C58"]
[WhiteElo "2252"]
[BlackElo "2537"]
[Annotator "RC"]
[PlyCount "98"]
[EventDate "2024.09.26"]
[EventType "team-tourn"]
[EventCountry "ROU"]
[SourceTitle "playchess.com"]
[Source "ChessBase"]
[SourceQuality "1"]
[TimeControl "40/5400+30:1800+30"]

1. e4 {[%emt 0:00:22]} e5 {[%emt 0:00:02]} 2. Nf3 {[%emt 0:00:32]} Nc6 {[%emt 0:00:09]} 3. Bc4 {[%emt 0:00:06]} Nf6 {[%emt 0:00:10]} 4. Ng5 {[%emt 0:00:10]} d5 {[%emt 0:00:38]} 5. exd5 {[%emt 0:00:08]} Na5 {[%emt 0:00:02]} 6. Bb5+ {[%emt 0:00:09]} c6 {[%emt 0:00:04]} 7. dxc6 {[%emt 0:00:16]} bxc6 {[%emt 0:00:05]} 8. Bd3 {[%emt 0:00:17]} Nd5 {[%emt 0:00:44]} 9. Nf3 {[%emt 0:00:07]} Bd6 {[%emt 0:00:51]} 10. O-O {[%emt 0:00:09]} O-O {[%emt 0:01:08]} 11. Re1 {[%emt 0:00:06]} f5 {[%emt 0:00:38]} 12. Nxe5 {[%emt 0:00:07]} Qf6 {[%emt 0:00:05]} 13. Nf3 {[%emt 0:00:07]} g5 {[%emt 0:00:06]} 14. c4 {[%emt 0:00:06]} Nf4 {[%emt 0:00:11]} 15. Bf1 {[%emt 0:00:05]} g4 {[%emt 0:00:10]} 16. d4 {[%emt 0:00:04]} gxf3 {[%emt 0:00:37]} 17. Qxf3 {[%emt 0:00:06]} Ne6 {[%emt 0:01:10]} 18. Qc3 {[%emt 0:00:07]} Nxd4 {[%emt 0:02:11]} 19. c5 {[%emt 0:00:11]} Be5 {[%emt 0:00:11]} 20. Qxa5 {[%emt 0:00:08]} f4 {[%emt 0:00:03]} 21. Nd2 {[%emt 0:00:22]} Bg4 {[%emt 0:38:27]} 22. Kh1 {[%emt 0:58:55]} Rae8 {[%emt 0:07:57]} 23. Qc3 {[%emt 0:08:49]} f3 {[%emt 0:08:59]} 24. Re4 {[%emt 0:15:54]} Qg7 {[%emt 0:27:12]} 25. g3 {[%emt 0:09:33]} Ne2 {[%emt 0:01:11]} 26. Qe3 {[%emt 0:00:22]} Kh8 {[%emt 0:03:34]} 27. Nc4 {[%emt 0:04:00]} Bd4 {[%emt 0:03:06]} 28. Rxe8 {[%emt 0:00:06]} Bxe3 {[%emt 0:00:05]} 29. Rxf8+ {[%emt 0:00:03]} Qxf8 {[%emt 0:00:01]} 30. Bxe3 {[%emt 0:00:05]} Be6 {[%emt 0:00:41]} 31. Ne5 {[%emt 0:01:49]} Qf6 {[%emt 0:00:52]} 32. Nxc6 {[%emt 0:01:00]} Qxb2 {[%emt 0:01:20]} 33. Rd1 {[%emt 0:00:09]} Qc2 {[%emt 0:00:43]} 34. Re1 {[%emt 0:00:08]} Qc3 {[%emt 0:01:30]} 35. Rb1 {[%emt 0:00:07]} Bd5 {[%emt 0:00:51]} 36. Nxa7 {[%emt 0:02:29]} Be4 {[%emt 0:00:05]} 37. Rd1 {[%emt 0:00:31]} Bc2 {[%emt 0:00:34]} 38. Nb5 {[%emt 0:01:12]} Qa5 {[%emt 0:01:41]} 39. c6 {[%emt 0:00:22]} Qxb5 {[%emt 0:00:56]} 40. c7 {[%emt 0:00:00]} Bf5 {[%emt 0:00:00]} 41. h4 {[%emt 0:23:10]} Qc6 {[%emt 0:04:41]} 42. Kh2 {[%emt 0:00:10]} Qxc7 {[%emt 0:01:26]} 43. Rd5 {[%emt 0:00:07]} Be6 {[%emt 0:11:42]} 44. Rd3 {[%emt 0:06:36]} Qc2 {[%emt 0:02:20]} 45. Rd8+ {[%emt 0:00:47]} Kg7 {[%emt 0:00:18]} 46. Bh3 {[%emt 0:00:11]} Bxh3 {[%emt 0:03:38]} 47. Kxh3 {[%emt 0:00:02]} Qf5+ {[%emt 0:00:13]} 48. g4 {[%emt 0:00:05]} Qb1 {[%emt 0:00:14]} 49. g5 {[%emt 0:00:13]} Qf5+ {[%emt 0:00:05]} 0-1

[Event "Romanian Superliga 2024"]
[Site "Mamaia"]
[Date "2024.10.01"]
[Round "4.21"]
[White "Grigore, George-Gabriel"]
[Black "Anton, Teodor"]
[Result "1/2-1/2"]
[ECO "E32"]
[WhiteElo "2414"]
[BlackElo "2427"]
[Annotator "RC"]
[PlyCount "82"]
[EventDate "2024.09.26"]
[EventType "team-tourn"]
[EventCountry "ROU"]
[SourceTitle "playchess.com"]
[Source "ChessBase"]
[SourceQuality "1"]
[TimeControl "40/5400+30:1800+30"]

1. d4 {[%emt 0:00:06]} Nf6 {[%emt 0:00:12]} 2. c4 {[%emt 0:00:18]} e6 {[%emt 0:00:07]} 3. Nc3 {[%emt 0:00:06]} Bb4 {[%emt 0:00:13]} 4. Qc2 {[%emt 0:00:09]} O-O {[%emt 0:00:15]} 5. a3 {[%emt 0:00:09]} Bxc3+ {[%emt 0:00:07]} 6. Qxc3 {[%emt 0:00:05]} b6 {[%emt 0:00:18]} 7. Bg5 {[%emt 0:00:43]} Bb7 {[%emt 0:00:10]} 8. e3 {[%emt 0:00:14]} d6 {[%emt 0:00:09]} 9. Ne2 {[%emt 0:02:44]} Nbd7 {[%emt 0:00:07]} 10. Qc2 {[%emt 0:00:09]} h6 {[%emt 0:00:10]} 11. Bh4 {[%emt 0:00:07]} c5 {[%emt 0:00:06]} 12. Rd1 {[%emt 0:00:06]} Qe7 {[%emt 0:00:06]} 13. Nc3 {[%emt 0:00:24]} cxd4 {[%emt 0:00:06]} 14. Rxd4 {[%emt 0:00:23]} Rac8 {[%emt 0:00:35]} 15. Nb5 {[%emt 0:12:54]} d5 {[%emt 0:00:58]} 16. Nxa7 {[%emt 0:01:01]} Ra8 {[%emt 0:00:43]} 17. Nb5 {[%emt 0:00:09]} Rfc8 {[%emt 0:00:07]} 18. Be2 {[%emt 0:03:33]} Bc6 {[%emt 0:08:05]} 19. Nc3 {[%emt 0:06:01]} dxc4 {[%emt 0:02:04]} 20. O-O {[%emt 0:01:09]} b5 {[%emt 0:04:40]} 21. e4 {[%emt 0:09:07]} e5 {[%emt 0:03:37]} 22. Rdd1 {[%emt 0:03:13]} g5 {[%emt 0:01:58]} 23. Bg3 {[%emt 0:00:15]} Nc5 {[%emt 0:00:10]} 24. f3 {[%emt 0:20:22]} Nb3 {[%emt 0:06:28]} 25. Bf2 {[%emt 0:00:43]} Rd8 {[%emt 0:02:01]} 26. Rxd8+ {[%emt 0:09:50]} Rxd8 {[%emt 0:00:22]} 27. Rd1 {[%emt 0:01:07]} Nd4 {[%emt 0:00:37]} 28. Qc1 {[%emt 0:00:20]} Nh5 {[%emt 0:03:39]} 29. Bf1 {[%emt 0:06:09]} Nf4 {[%emt 0:01:29]} 30. Kh1 {[%emt 0:00:29]} Qf6 {[%emt 0:02:33]} 31. Be3 {[%emt 0:23:55]} Nfe6 {[%emt 0:02:22]} 32. a4 {[%emt 0:00:00]} Nb3 {[%emt 0:27:04]} 33. Qb1 {[%emt 0:00:00]} bxa4 {[%emt 0:01:46]} 34. Bxc4 {[%emt 0:00:00]} Ned4 {[%emt 0:00:58]} 35. Qd3 {[%emt 0:00:00]} Nc5 {[%emt 0:01:37]} 36. Qf1 {[%emt 0:00:00]} Rb8 {[%emt 0:04:58]} 37. Qf2 {[%emt 0:00:00]} Nce6 {[%emt 0:00:34]} 38. h3 {[%emt 0:00:00]} Nf4 {[%emt 0:08:03]} 39. Rd2 {[%emt 0:00:09]} Rb4 {[%emt 0:01:51]} 40. Ba2 {[%emt 0:00:00]} h5 {[%emt 0:00:00]} 41. Qg3 {[%emt 0:12:52]} h4 {[%emt 0:15:23]} 1/2-1/2

[Event "Romanian Superliga 2024"]
[Site "Mamaia"]
[Date "2024.10.01"]
[Round "4.22"]
[White "Musat, Adrian"]
[Black "Istratescu, Andrei"]
[Result "1/2-1/2"]
[ECO "B22"]
[WhiteElo "2358"]
[BlackElo "2370"]
[Annotator "RC"]
[PlyCount "32"]
[EventDate "2024.09.26"]
[EventType "team-tourn"]
[EventCountry "ROU"]
[SourceTitle "playchess.com"]
[Source "ChessBase"]
[SourceQuality "1"]
[TimeControl "40/5400+30:1800+30"]

1. e4 {[%emt 0:00:05]} c5 {[%emt 0:00:28]} 2. c3 {[%emt 0:00:06]} Nf6 {[%emt 0:00:34]} 3. e5 {[%emt 0:00:06]} Nd5 {[%emt 0:00:02]} 4. Nf3 {[%emt 0:00:29]} Nc6 {[%emt 0:02:17]} 5. Bc4 {[%emt 0:00:56]} e6 {[%emt 0:00:53]} 6. d4 {[%emt 0:02:22]} cxd4 {[%emt 0:00:44]} 7. cxd4 {[%emt 0:00:16]} d6 {[%emt 0:00:09]} 8. O-O {[%emt 0:01:37]} Be7 {[%emt 0:02:32]} 9. Qe2 {[%emt 0:02:02]} O-O {[%emt 0:00:49]} 10. Nc3 {[%emt 0:04:55]} Nxc3 {[%emt 0:03:24]} 11. bxc3 {[%emt 0:00:54]} dxe5 {[%emt 0:00:42]} 12. dxe5 {[%emt 0:00:21]} Qc7 {[%emt 0:00:58]} 13. Bd3 {[%emt 0:12:16]} b6 {[%emt 0:01:48]} 14. Re1 {[%emt 0:27:25]} Bb7 {[%emt 0:00:25]} 15. Ng5 {[%emt 0:11:08]} Bxg5 {[%emt 0:00:57]} 16. Bxg5 {[%emt 0:02:07]} Nxe5 {[%emt 0:00:06]} 1/2-1/2